bitfinex-derivatives/quotes_ETHF0:USTF0_20250320
["timestamp","ask_amount","ask_price","bid_price","bid_amount"]
[1742501209790,1.68074,1975.0,1974.9,7.50795]
[1742501210695,2.34884,1975.0,1974.9,7.50795]
[1742501211594,1.68074,1975.0,1974.9,7.50795]
[1742501212298,2.96684,1975.0,1974.9,7.50795]
[1742501213298,2.96684,1975.0,1974.9,3.2078]
[1742501214300,1.01324,1974.8,1974.7,14.9028]
[1742501214493,1.01324,1974.8,1974.7,6.4948]
[1742501214794,1.01324,1974.8,1974.7,3.2078]
[1742501214999,1.71544,1974.8,1974.7,3.2078]
[1742501215788,3.03474,1974.8,1974.7,3.2078]
[1742501216893,1.01334,1974.6,1974.5,3.21538303]
[1742501217090,1.01334,1974.6,1974.5,0.00758303]
[1742501217793,2.34264,1974.6,1974.5,0.00758303]
[1742501217989,2.34264,1974.6,1974.1,4.87497]
[1742501218300,1.01355,1974.2,1974.1,8.16197]
[1742501218787,1.01355,1974.2,1974.1,6.4948]
[1742501219191,2.34285,1974.2,1974.1,7.5084]
[1742501219392,2.34285,1974.2,1974.1,6.4948]
[1742501219991,2.99215,1974.2,1974.1,6.4948]
[1742501220996,1.0136,1974.1,1974.0,3.29558303]
[1742501221197,2.4219,1974.1,1974.0,3.29558303]
[1742501224711,2.4219,1974.1,1974.0,0.00758303]
[1742501226700,1.0137,1973.9,1973.8,3.2078]
[1742501227102,3.7159,1973.9,1973.8,3.2078]
[1742501227503,3.7159,1973.9,1973.7,1.4193]
[1742501227504,1.01376,1973.8,1973.7,1.4193]
[1742501227698,2.32976,1973.8,1973.7,4.6271]
[1742501228000,2.32976,1973.8,1973.7,3.2078]
[1742501229302,2.32976,1973.8,1973.7,5.64091]
[1742501229504,2.32976,1973.8,1973.7,4.6271]
[1742501229701,2.32976,1973.8,1973.7,3.2078]
[1742501230907,2.32976,1973.8,1973.7,4.5222]
[1742501231799,2.32976,1973.8,1973.7,3.2078]
[1742501235505,1.01381,1973.7,1973.6,2.33583303]
[1742501235705,2.33531,1973.7,1973.6,1.02143303]
[1742501242902,1.3215,1973.7,1973.6,1.02143303]
[1742501243211,1.69955,1973.9,1973.8,1.01376]
[1742501243509,3.07385,1973.9,1973.8,1.01376]
[1742501245104,3.07385,1973.9,1973.7,4.87067]
[1742501245105,1.01376,1973.8,1973.7,4.87067]
[1742501245304,2.36336,1973.8,1973.7,4.87067]
[1742501246513,2.36336,1973.8,1973.7,4.22157]
[1742501247315,2.36336,1973.8,1973.7,5.61327]
[1742501251716,2.36336,1973.8,1973.7,14.02127]
[1742501251919,2.36336,1973.8,1973.7,5.61327]
[1742501260723,2.36336,1973.8,1973.7,4.5995]
[1742501260928,2.36336,1973.8,1973.7,5.61331]
[1742501261224,2.36336,1973.8,1973.7,3.2078]
[1742501261622,1.01381,1973.7,1973.6,0.00758303]
[1742501261821,3.10981,1973.7,1973.6,0.00758303]
[1742501262722,1.01396,1973.4,1973.3,1.2911]
[1742501263319,4.6067,1973.5,1973.0,3.2078]
[1742501263520,1.01411,1973.1,1973.0,3.2078]
[1742501264319,1.67361,1973.1,1973.0,3.2078]
[1742501264922,3.07251,1973.1,1973.0,3.2078]
[1742501265117,1.01417,1973.0,1972.9,0.00760244]
[1742501265422,2.41307,1973.0,1972.9,0.00760244]
[1742501266130,3.05817,1973.0,1972.9,0.00760244]
[1742501268523,1.01417,1973.0,1972.9,1.02182244]
[1742501268730,1.01417,1973.0,1972.9,2.40832244]
[1742501268930,2.33727,1973.0,1972.9,2.40832244]
[1742501270333,1.3231,1973.0,1972.9,2.40832244]
[1742501270828,1.3231,1973.0,1972.9,3.10872244]
[1742501271129,1.02170244,1973.2,1973.1,1.01411]
[1742501272335,1.01411,1973.1,1973.0,4.22195]
[1742501272532,2.34751,1973.1,1973.0,5.57945]
[1742501273434,2.34751,1973.1,1973.0,2.37165]
[1742501274433,2.34751,1973.1,1973.0,5.57945]
[1742501275337,2.34751,1973.1,1973.0,1.3575]
[1742501275535,2.34751,1973.1,1973.0,2.37167]
[1742501276631,2.34751,1973.1,1973.0,10.77967]
[1742501276832,2.34751,1973.1,1973.0,2.37167]
[1742501282340,2.34751,1973.1,1973.0,5.57947]
[1742501303155,2.34751,1973.1,1973.0,2.37167]
[1742501303356,2.34751,1973.1,1973.0,5.57947]
[1742501307156,2.34751,1973.1,1973.0,13.99647]
[1742501307356,2.34751,1973.1,1973.0,5.57947]
[1742501310260,2.34751,1973.1,1973.0,3.2078]
[1742501310965,2.34751,1973.1,1973.0,4.22197]
[1742501315366,2.34751,1973.1,1973.0,5.58567]
[1742501315765,2.34751,1973.1,1973.0,4.22197]
[1742501317069,1.3334,1973.1,1973.0,4.22197]
[1742501317268,1.3334,1973.1,1973.0,5.58567]
[1742501319173,2.34751,1973.1,1973.0,5.58567]
[1742501323275,1.3334,1973.1,1973.0,2.37787]
[1742501323477,2.34751,1973.1,1973.0,2.37787]
[1742501323975,2.34751,1973.1,1973.0,5.58567]
[1742501334575,1.3334,1973.1,1973.0,5.58567]
[1742501334879,1.3334,1973.1,1973.0,6.26537]
[1742501336177,2.34751,1973.1,1973.0,6.26537]
[1742501341782,2.34751,1973.1,1973.0,5.58567]
[1742501343082,2.34751,1973.1,1973.0,3.2078]
[1742501343681,2.34751,1973.1,1973.0,4.22197]
[1742501345584,2.34751,1973.1,1973.0,5.63337]
[1742501346179,2.34751,1973.1,1973.0,4.6192]
[1742501346383,2.34751,1973.1,1973.0,3.2078]
[1742501346974,1.01417,1973.0,1972.9,0.00760244]
[1742501347286,3.74607,1973.0,1972.9,0.00760244]
[1742501348382,7.03107,1973.0,1972.9,0.00760244]
[1742501352087,7.03107,1973.0,1972.6,3.2078]
[1742501352088,1.01432,1972.7,1972.6,3.2078]
[1742501352284,1.01432,1972.7,1972.4,1.01445]
[1742501352285,1.01442,1972.5,1972.4,4.22225]
[1742501352886,2.31622,1972.5,1972.4,4.22225]
[1742501353385,2.31622,1972.5,1972.4,4.22227]
[1742501354286,2.31622,1972.5,1972.4,3.2078]
[1742501355292,3.02342,1972.5,1972.4,3.2078]
[1742501357383,3.02342,1972.5,1972.4,4.5832]
[1742501357785,3.02342,1972.5,1972.4,5.59767]
[1742501358987,3.02342,1972.5,1972.4,4.5832]
[1742501359983,3.02342,1972.5,1972.4,5.59767]
[1742501360793,3.02342,1972.5,1972.4,4.5832]
[1742501360992,3.02342,1972.5,1972.4,5.59767]
[1742501361383,3.02342,1972.5,1972.4,4.5832]
[1742501362183,3.02342,1972.5,1972.4,1.3754]
[1742501382606,3.02342,1972.5,1972.4,2.38987]
[1742501382903,3.02342,1972.5,1972.4,1.3754]
[1742501393395,3.02342,1972.5,1972.4,2.38987]
[1742501393599,3.02342,1972.5,1972.4,1.3754]
[1742501399311,3.02342,1972.5,1972.4,2.38987]
[1742501400507,3.02342,1972.5,1972.4,1.3754]
[1742501403709,2.31622,1972.5,1972.4,5.59767]
[1742501403912,2.31622,1972.5,1972.4,6.30137]
[1742501416621,2.31622,1972.5,1972.4,3.09357]
[1742501419920,2.31622,1972.5,1972.4,2.38987]
[1742501420221,2.96272,1972.5,1972.4,2.38987]
[1742501433818,1.01447,1972.4,1972.3,4.22988244]
[1742501434027,2.36797,1972.4,1972.3,4.22988244]
[1742501435121,2.53633,1972.3,1972.0,4.22242]
[1742501435324,1.01468,1972.1,1972.0,4.22242]
[1742501435635,1.01468,1972.1,1972.0,2.34222]
[1742501435927,1.326,1972.1,1972.0,5.55002]
[1742501436118,2.34063,1972.1,1972.0,5.55002]
[1742501437828,2.34063,1972.1,1972.0,4.22242]
[1742501439518,2.34063,1972.1,1972.0,5.61492]
[1742501440332,2.34063,1972.1,1972.0,4.22242]
[1742501441432,2.34063,1972.1,1972.0,5.54672]
[1742501443636,1.326,1972.1,1972.0,5.54672]
[1742501443831,1.326,1972.1,1972.0,8.82772]
[1742501444036,1.326,1972.1,1972.0,10.19882]
[1742501448633,1.01443,1972.6,1972.5,1.01437]
[1742501448832,1.68533,1972.6,1972.5,4.22217]
[1742501449335,1.68533,1972.6,1972.5,5.62397]
[1742501450538,3.02333,1972.6,1972.5,5.62397]
[1742501454144,2.0089,1972.6,1972.5,5.62397]
[1742501454538,3.02327,1972.6,1972.5,5.62397]
[1742501459251,3.02327,1972.6,1972.5,3.2078]
[1742501460847,3.02327,1972.6,1972.5,4.22222]
[1742501461056,3.02327,1972.6,1972.5,3.2078]
[1742501461549,3.02327,1972.6,1972.5,4.22222]
[1742501461745,3.02327,1972.6,1972.5,5.61022]
[1742501467162,3.02327,1972.6,1972.5,4.5958]
[1742501467363,3.02327,1972.6,1972.5,3.2078]
[1742501468163,3.02327,1972.6,1972.5,4.22222]
[1742501469459,3.02327,1972.6,1972.5,5.63272]
[1742501470465,2.0089,1972.6,1972.5,5.63272]
[1742501474169,2.0089,1972.6,1972.5,2.42492]
[1742501474367,2.0089,1972.6,1972.5,5.63272]
[1742501475270,3.02327,1972.6,1972.5,5.63272]
[1742501476873,2.0089,1972.6,1972.5,5.63272]
[1742501477467,3.02327,1972.6,1972.5,5.63272]
[1742501479069,2.0089,1972.6,1972.5,5.63272]
[1742501479470,3.02327,1972.6,1972.5,5.63272]
[1742501479672,2.0089,1972.6,1972.5,5.63272]
[1742501480369,3.02327,1972.6,1972.5,5.63272]
[1742501481965,1.01455,1972.3,1972.2,3.2078]
[1742501482274,1.01452,1972.4,1972.3,1.0145]
[1742501483274,2.43632,1972.4,1972.3,2.3589]
[1742501484783,2.43632,1972.4,1972.3,1.3444]
[1742501485778,2.43632,1972.4,1972.2,3.2078]
[1742501485779,1.01453,1972.3,1972.2,3.2078]
[1742501485978,2.99653,1972.3,1972.2,5.55663]
[1742501492783,2.99653,1972.3,1972.2,5.55668]
[1742501493484,2.99653,1972.3,1972.2,3.2078]
[1742501494283,1.01473,1971.9,1971.8,1.3986]
[1742501494678,1.01473,1971.9,1971.8,2.41338]
[1742501494985,3.08172244,1972.0,1971.9,1.01473]
[1742501495280,3.08172244,1972.0,1971.9,4.22253]
[1742501495877,0.00760244,1972.0,1971.9,8.14683]
[1742501496078,0.00760244,1972.0,1971.9,9.55943]
[1742501497081,2.35135,1972.3,1972.2,1.01458]
[1742501497381,2.35135,1972.3,1972.2,4.22238]
[1742501497882,2.35135,1972.3,1972.2,6.28128]
[1742501499386,1.3368,1972.3,1972.2,6.28128]
[1742501500386,1.71261244,1972.4,1972.3,1.01453]
[1742501500693,1.71257244,1972.4,1972.3,2.38233]
[1742501500885,0.69810244,1972.4,1972.3,2.38233]
[1742501501392,0.00760244,1972.4,1972.3,5.66033]
[1742501504686,1.02207244,1972.4,1972.3,5.66033]
[1742501504891,2.31947244,1972.4,1972.3,5.66033]
[1742501505195,1.30500244,1972.4,1972.3,5.66033]
[1742501507197,2.31947244,1972.4,1972.3,5.66033]
[1742501509392,2.31947244,1972.4,1972.3,14.07733]
[1742501509792,1.30500244,1972.4,1972.3,14.07733]
[1742501509992,2.31947244,1972.4,1972.3,14.07733]
[1742501510196,1.30500244,1972.4,1972.3,14.07733]
[1742501511999,2.31947244,1972.4,1972.3,14.07733]
[1742501512197,1.30500244,1972.4,1972.3,14.07733]
[1742501516696,1.30500244,1972.4,1972.3,17.28513]
[1742501516697,2.31947244,1972.4,1972.3,17.28513]
[1742501516897,1.30500244,1972.4,1972.3,17.28513]
[1742501518999,1.30500244,1972.4,1972.3,14.07733]
[1742501519200,1.30500244,1972.4,1972.3,17.28513]
[1742501520302,2.53554,1973.0,1972.3,16.2706]
[1742501520502,9.26269984,1973.2,1972.3,16.2706]
[1742501520503,1.2966,1972.8,1972.7,4.22203]
[1742501520803,2.31087,1972.8,1972.7,4.22203]
[1742501521400,2.31087,1972.8,1972.7,5.59113]
[1742501522799,1.2966,1972.8,1972.7,5.59113]
[1742501524511,1.2966,1972.8,1972.7,6.24543]
[1742501525109,1.2966,1972.8,1972.7,5.59113]
[1742501526910,0.00760244,1972.9,1972.8,1.01427]
[1742501527106,1.3417,1972.9,1972.8,5.66557]
[1742501527300,1.3417,1972.9,1972.8,6.34717]
[1742501528910,0.00760244,1973.0,1972.9,1.01422]
[1742501529213,0.00760244,1973.0,1972.9,6.18692]
[1742501529719,0.00760244,1973.0,1972.9,14.60392]
[1742501530212,0.00760244,1973.0,1972.9,13.95892]
[1742501530412,1.36870244,1973.0,1972.9,17.23392]
[1742501531816,1.36870244,1973.0,1972.9,9.47102]
[1742501532913,1.01393,1973.5,1973.4,1.01393]
[1742501533119,1.69713,1973.5,1973.4,1.01393]
[1742501533515,1.01396,1973.4,1973.3,5.60327]
[1742501533720,2.42156,1973.4,1973.3,5.60327]
[1742501533916,1.4076,1973.4,1973.3,5.60327]
[1742501534223,2.42156,1973.4,1973.3,5.60327]
[1742501534527,2.42156,1973.4,1973.3,3.2078]
[1742501538434,1.01401,1973.3,1973.2,0.00760244]
[1742501538628,5.59381,1973.3,1973.2,0.00760244]
[1742501541330,1.01417,1973.0,1972.9,1.01419]
[1742501542038,1.01432,1972.8,1972.7,1.0143]
[1742501542238,1.01432,1972.8,1972.7,2.374]
[1742501542735,2.29602,1972.8,1972.7,2.374]
[1742501547240,2.29602,1972.8,1972.7,1.0143]
[1742501549641,2.29602,1972.8,1972.7,2.4054]
[1742501555039,1.2817,1972.8,1972.7,2.4054]
[1742501555753,1.2817,1972.8,1972.7,3.0684]
[1742501557544,1.2817,1972.8,1972.7,11.4854]
[1742501557745,2.29597,1972.8,1972.7,3.0684]
[1742501558638,1.2817,1972.8,1972.7,3.0684]
[1742501558841,2.29597,1972.8,1972.7,2.4054]
[1742501559043,2.97917,1972.8,1972.7,1.0143]
[1742501560045,1.01432,1972.7,1972.6,1.67832244]
[1742501560245,2.32942,1972.7,1972.6,6.24892244]
[1742501562052,1.3151,1972.7,1972.6,6.24892244]
[1742501569753,2.32942,1972.7,1972.6,6.24892244]
[1742501570256,1.3151,1972.7,1972.6,6.24892244]
[1742501570659,2.32942,1972.7,1972.6,6.24892244]
[1742501570959,1.3151,1972.7,1972.6,6.24892244]
[1742501573952,2.32942,1972.7,1972.6,6.24892244]
[1742501574160,1.3151,1972.7,1972.6,6.24892244]
[1742501574362,2.32942,1972.7,1972.6,6.24892244]
[1742501574556,2.32942,1972.7,1972.6,2.97492244]
[1742501574759,2.32942,1972.7,1972.6,1.02192244]
[1742501575858,2.32942,1972.7,1972.6,2.36452244]
[1742501578166,2.32942,1972.7,1972.6,1.02192244]
[1742501579559,2.32942,1972.7,1972.6,2.39792244]
[1742501581773,2.32942,1972.7,1972.6,3.07052244]
[1742501589879,2.32942,1972.7,1972.6,2.39792244]
[1742501592482,2.32942,1972.7,1972.6,1.02192244]
[1742501594177,2.32942,1972.7,1972.6,2.35752244]
[1742501594683,2.32942,1972.7,1972.6,1.34320244]
[1742501594874,4.5229,1972.7,1972.2,3.2078]
[1742501595079,1.01453,1972.4,1972.3,5.62209]
[1742501595283,1.01453,1972.4,1972.3,2.35009]
[1742501595478,3.12813,1972.4,1972.3,1.3356]
[1742501596285,3.12813,1972.4,1972.3,2.35013]
[1742501597379,2.41923,1972.4,1972.3,2.35013]
[1742501597579,1.4047,1972.4,1972.3,3.04323]
[1742501597781,2.41917,1972.4,1972.3,3.04323]
[1742501598672,1.4047,1972.4,1972.3,3.04323]
[1742501598877,2.41917,1972.4,1972.3,3.04323]
[1742501602283,1.4047,1972.4,1972.3,3.04323]
[1742501603392,2.41917,1972.4,1972.3,3.04323]
[1742501604490,1.4047,1972.4,1972.3,3.04323]
[1742501604678,2.41917,1972.4,1972.3,3.04323]
[1742501605483,2.41917,1972.4,1972.3,1.01453]
[1742501605890,2.41917,1972.4,1972.3,3.07263]
[1742501606389,3.08147,1972.4,1972.3,3.07263]
[1742501607196,3.08147,1972.4,1972.3,1.01453]
[1742501607892,3.08147,1972.4,1972.3,2.38273]
[1742501608092,3.08147,1972.4,1972.3,3.07263]
[1742501623514,3.08147,1972.4,1972.3,2.38273]
[1742501623713,3.08147,1972.4,1972.3,1.01453]
[1742501624009,3.08147,1972.4,1972.2,3.27960244]
[1742501624010,1.01453,1972.3,1972.2,0.00760244]
[1742501624215,3.00793,1972.3,1972.2,0.00760244]
[1742501625011,1.01473,1972.0,1971.9,1.01471]
[1742501625412,2.97813,1972.0,1971.9,1.01471]
[1742501625614,1.01473,1971.9,1971.8,6.34564]
[1742501625814,2.33393,1971.9,1971.8,6.34564]
[1742501626123,2.33393,1971.9,1971.8,4.28574]
[1742501626513,2.33393,1971.9,1971.8,5.68454]
[1742501627213,1.3192,1971.9,1971.8,5.68454]
[1742501627418,2.33393,1971.9,1971.8,6.34244]
[1742501628314,1.3192,1971.9,1971.8,6.34244]
[1742501629323,2.33393,1971.9,1971.8,6.34244]
[1742501629914,1.3192,1971.9,1971.8,6.34244]
[1742501630115,2.33393,1971.9,1971.8,6.34244]
[1742501630518,2.33393,1971.9,1971.8,3.07144]
[1742501630717,2.33393,1971.9,1971.8,2.41354]
[1742501631925,2.33393,1971.9,1971.8,1.01474]
[1742501632826,2.33393,1971.9,1971.8,2.31054]
[1742501635328,2.33393,1971.9,1971.8,2.97504]
[1742501639427,1.3192,1971.9,1971.8,2.97504]
[1742501640433,2.33393,1971.9,1971.8,2.97504]
[1742501648140,1.3192,1971.9,1971.8,2.97504]
[1742501651143,2.33393,1971.9,1971.8,2.31054]
[1742501651449,1.01478,1971.8,1971.7,4.29440244]
[1742501651647,2.33498,1971.8,1971.7,5.66430244]
[1742501651848,2.33498,1971.8,1971.7,2.39230244]
[1742501653647,2.97908,1971.8,1971.7,2.39230244]
[1742501664270,1.3202,1971.8,1971.7,2.39230244]
[1742501664470,1.3202,1971.8,1971.7,3.10350244]
[1742501674179,4.92084,1972.1,1972.0,1.01468]
[1742501675680,6.30304,1972.1,1972.0,2.33388]
[1742501680677,7.82501,1972.1,1971.7,0.00760244]
[1742501680875,1.01478,1971.9,1971.8,4.28475]
[1742501681283,3.70678,1971.9,1971.8,4.28475]
[1742501682178,3.70678,1971.9,1971.8,5.70395]
[1742501684386,2.692,1971.9,1971.8,5.70395]
[1742501684685,1.989,1971.9,1971.8,5.70395]
[1742501686584,3.00373,1971.9,1971.8,5.70395]
[1742501686787,1.989,1971.9,1971.8,5.70395]
[1742501699692,1.989,1971.9,1971.8,5.70295]
[1742501700392,1.01453,1972.3,1972.2,1.01458]
[1742501700590,1.3303,1972.3,1972.2,1.01458]
[1742501700791,1.3303,1972.3,1972.2,1.71228]
[1742501701596,2.681,1972.3,1972.2,3.02738]
[1742501701894,3.69553,1972.3,1972.2,3.02738]
[1742501702094,3.69553,1972.3,1972.2,3.716169]
[1742501702296,3.69553,1972.3,1972.2,1.703369]
[1742501702496,3.69553,1972.3,1972.2,1.70307592]
[1742501704095,3.69553,1972.3,1972.2,3.02727592]
[1742501705285,2.681,1972.3,1972.2,3.02727592]
[1742501707102,3.69553,1972.3,1972.2,3.02727592]
[1742501710305,3.69553,1972.3,1972.2,2.33878]
[1742501710498,3.69553,1972.3,1972.2,3.02650551]
[1742501712501,3.03793,1972.3,1972.2,3.02650551]
[1742501712803,7.07061536,1972.7,1972.6,1.01437]
[1742501713009,7.07061536,1972.7,1972.6,1.70209551]
[1742501713201,7.07061536,1972.7,1972.6,3.68379551]
[1742501713909,1.01435,1972.7,1972.6,3.68379551]
[1742501714408,1.01435,1972.7,1972.6,3.68294659]
[1742501716008,2.42155,1972.7,1972.6,3.68294659]
[1742501718712,3.09125,1972.7,1972.6,3.68294659]
[1742501719306,3.09125,1972.7,1972.6,12.10194659]
[1742501719512,3.09125,1972.7,1972.6,3.68294659]
[1742501720309,3.09125,1972.7,1972.6,2.99607]
[1742501720512,3.09125,1972.7,1972.6,3.6819842]
[1742501722410,3.09125,1972.7,1972.6,3.68173302]
[1742501723105,3.09125,1972.7,1972.6,0.68566302]
[1742501723417,10.35641,1972.7,1972.3,3.267]
[1742501723604,1.01447,1972.4,1972.3,3.267]
[1742501724109,3.13647,1972.4,1972.3,3.267]
[1742501724613,3.13647,1972.4,1972.3,4.6498]
[1742501724812,3.13647,1972.4,1972.3,5.66433]
[1742501725013,3.13647,1972.4,1972.3,4.6498]
[1742501726715,3.78587,1972.4,1972.3,5.66433]
[1742501727212,3.78587,1972.4,1972.3,4.6498]
[1742501727421,3.78587,1972.4,1972.3,5.66433]
[1742501728717,1.4181,1972.4,1972.3,5.66433]
[1742501730023,1.01445,1972.5,1972.4,1.01447]
[1742501730324,2.36955,1972.5,1972.4,3.09157]
[1742501730821,1.3551,1972.5,1972.4,3.09157]
[1742501731013,1.3551,1972.5,1972.4,3.77757]
[1742501731820,2.36952,1972.5,1972.4,3.77757]
[1742501735318,2.36952,1972.5,1972.4,4.46026783]
[1742501736428,2.36952,1972.5,1972.4,4.46028464]
[1742501738230,1.3551,1972.5,1972.4,4.46028464]
[1742501738831,2.36952,1972.5,1972.4,4.46028464]
[1742501740331,2.36952,1972.5,1972.4,4.46021408]
[1742501742329,2.36952,1972.5,1972.4,4.46049293]
[1742501745832,2.36952,1972.5,1972.4,3.77757]
[1742501746032,2.36952,1972.5,1972.4,4.46065372]
[1742501746338,2.36952,1972.5,1972.4,3.77757]
[1742501746541,2.36952,1972.5,1972.4,4.46068383]
[1742501747034,1.3551,1972.5,1972.4,4.46068383]
[1742501747235,1.72261,1972.6,1972.5,1.01442]
[1742501747442,1.3742,1972.6,1972.5,3.10013383]
[1742501747733,1.3742,1972.6,1972.5,3.1001532]
[1742501747940,1.3742,1972.6,1972.5,6.3661532]
[1742501748336,2.38857,1972.6,1972.5,6.3661532]
[1742501748540,1.3742,1972.6,1972.5,6.3661532]
[1742501748943,1.01419,1973.1,1973.0,1.01412]
[1742501749247,3.2078,1973.3,1973.2,1.01406]
[1742501749444,3.2078,1973.3,1973.2,1.6971932]
[1742501749644,2.96789,1973.4,1973.3,1.01401]
[1742501749841,1.67729,1973.4,1973.3,3.0696432]
[1742501750348,0.6633,1973.4,1973.3,2.38651]
[1742501750647,0.6633,1973.4,1973.3,3.06795338]
[1742501752352,0.6633,1973.4,1973.3,6.33295338]
[1742501752550,0.6633,1973.4,1973.3,5.65151]
[1742501753250,0.00760244,1973.5,1973.4,1.01396]
[1742501753549,1.01366,1974.1,1974.0,1.01361]
[1742501753741,1.65966,1974.1,1974.0,1.01361]
[1742501754652,1.65966,1974.1,1974.0,2.35421]
[1742501755249,1.01366,1974.1,1974.0,2.35421]
[1742501755454,1.02115244,1974.2,1974.1,1.0136]
[1742501756048,1.0137,1974.0,1973.9,1.01366]
[1742501756249,1.0137,1974.0,1973.9,4.27866]
[1742501756651,1.0137,1973.9,1973.8,2.35432]
[1742501756857,1.0137,1973.9,1973.8,5.61932]
[1742501757051,1.0137,1973.9,1973.8,5.61936]
[1742501761558,1.0137,1973.9,1973.8,4.6046]
[1742501762854,1.0137,1973.9,1973.8,5.61836]
[1742501763557,1.0137,1973.9,1973.8,2.35436]
[1742501769559,2.3567,1973.9,1973.8,2.35436]
[1742501773869,3.21540244,1974.2,1973.9,2.53426]
[1742501774075,1.02116244,1974.2,1974.1,4.2214]
[1742501774578,1.02116244,1974.2,1974.1,5.6385]
[1742501777264,1.02116244,1974.2,1974.1,6.31748556]
[1742501777468,1.02116244,1974.2,1974.1,3.10968556]
[1742501777672,1.02116244,1974.2,1974.1,3.10968549]
[1742501777975,0.00760244,1974.2,1974.1,3.10968549]
[1742501778273,1.01344,1974.5,1974.4,1.0134]
[1742501778576,2.39624,1974.5,1974.4,4.95438549]
[1742501778777,1.3828,1974.5,1974.4,6.31188549]
[1742501778972,1.3794,1974.7,1974.6,1.01334]
[1742501779279,1.3794,1974.7,1974.6,1.69232549]
[1742501780280,3.79794,1974.7,1974.6,3.01802549]
[1742501781472,3.79794,1974.7,1974.6,2.00468549]
[1742501781673,3.79794,1974.7,1974.6,2.0046275]
[1742501781875,3.79794,1974.7,1974.6,1.3257]
[1742501782071,1.01334,1974.6,1974.5,0.00760244]
[1742501782277,2.30944,1974.6,1974.5,0.00760244]
[1742501786582,2.30944,1974.6,1974.5,1.32740244]
[1742501787782,5.51724,1974.6,1974.5,1.32740244]
[1742501787982,5.51724,1974.6,1974.5,0.00760244]
[1742501789280,5.51724,1974.6,1974.5,1.37420244]
[1742501793490,5.51724,1974.6,1974.5,0.00760244]
[1742501796690,5.51724,1974.6,1974.5,1.96720244]
[1742501796893,1.01333,1974.7,1974.6,1.01332]
[1742501797094,1.01333,1974.7,1974.6,1.97304825]
[1742501797294,1.01333,1974.7,1974.6,5.23404825]
[1742501797989,1.01333,1974.7,1974.6,6.24738825]
[1742501799589,0.00760244,1974.8,1974.7,1.01329]
[1742501799788,0.00760244,1974.8,1974.7,3.02573825]
[1742501800094,0.00760244,1974.8,1974.7,6.23353825]
[1742501801695,1.0131,1975.1,1975.0,1.01309]
[1742501801903,1.0131,1975.1,1975.0,4.95274439]
[1742501802405,1.0131,1975.1,1975.0,6.28504439]
[1742501803401,2.345,1975.1,1975.0,6.28504439]
[1742501804097,2.345,1975.1,1975.0,5.27195439]
[1742501804500,3.0262,1975.1,1975.0,6.28509439]
[1742501805402,3.0262,1975.1,1975.0,5.27195439]
[1742501806004,3.0262,1975.1,1975.0,6.28509439]
[1742501806693,3.0262,1975.1,1975.0,5.27195439]
[1742501807096,3.0262,1975.1,1975.0,6.28509439]
[1742501807296,3.0262,1975.1,1975.0,3.02409439]
[1742501807497,3.0262,1975.1,1975.0,6.28409439]
[1742501808804,2.345,1975.1,1975.0,6.28409439]
[1742501814809,2.345,1975.1,1975.0,6.28314099]
[1742501815500,2.345,1975.1,1975.0,4.5923]
[1742501815801,3.0263,1975.1,1975.0,4.5923]
[1742501819005,3.0263,1975.1,1975.0,5.60544]
[1742501819203,3.0263,1975.1,1975.0,6.28359697]
[1742501819794,2.345,1975.1,1975.0,6.28353758]
[1742501821109,2.345,1975.1,1975.0,5.27039758]
[1742501821302,2.345,1975.1,1975.0,5.27069144]
[1742501823110,2.345,1975.1,1975.0,4.5923]
[1742501823409,2.345,1975.1,1975.0,6.28434391]
[1742501825207,1.0131,1975.1,1975.0,6.28434391]
[1742501825911,2.3554,1975.1,1975.0,6.28434391]
[1742501826803,3.21284243,1975.2,1975.0,6.28434391]
[1742501827007,4.55514243,1975.2,1975.1,3.07009391]
[1742501827208,4.55514243,1975.2,1975.1,3.76080263]
[1742501828309,5.56818243,1975.2,1975.1,3.76080263]
[1742501828512,1.34734243,1975.2,1975.1,3.76080263]
[1742501829005,0.00504243,1975.2,1975.1,3.76080263]
[1742501829312,0.00504243,1975.2,1975.1,6.96896659]
[1742501829807,0.6791,1975.6,1975.5,1.01288]
[1742501830011,1.01282,1975.7,1975.6,1.01283]
[1742501830208,1.01282,1975.7,1975.6,3.03090659]
[1742501830410,1.01282,1975.7,1975.6,4.41720659]
[1742501830612,1.3632,1975.7,1975.6,4.41720659]
[1742501830913,2.37598,1975.7,1975.6,4.41720659]
[1742501831113,2.37598,1975.7,1975.6,4.41642212]
[1742501831307,1.3632,1975.7,1975.6,4.41642212]
[1742501832207,1.3632,1975.7,1975.6,7.67542212]
[1742501833113,1.3632,1975.7,1975.6,7.674705]
[1742501833410,2.37598,1975.7,1975.6,7.674705]
[1742501833618,1.3632,1975.7,1975.6,7.674705]
[1742501834514,4.8996,1975.9,1975.8,1.01273]
[1742501834814,2.3461,1975.9,1975.8,1.01273]
[1742501835006,2.3461,1975.9,1975.8,1.69137783]
[1742501835206,14.78316271,1976.1,1975.9,1.01263]
[1742501835510,20.33768271,1976.1,1976.0,1.01263]
[1742501835713,17.12988271,1976.1,1976.0,1.01263]
[1742501835909,18.44628271,1976.1,1976.0,2.30173]
[1742501836110,21.65408271,1976.1,1976.0,2.30173]
[1742501837916,21.65408271,1976.1,1976.0,1.2891]
[1742501838426,21.65408271,1976.1,1976.0,2.30173]
[1742501838818,21.65408271,1976.1,1976.0,1.2891]
[1742501839011,21.65408271,1976.1,1976.0,2.30173]
[1742501840719,21.65408271,1976.1,1976.0,1.2891]
[1742501842719,21.65408271,1976.1,1976.0,2.30173]
[1742501842919,16.09956271,1976.1,1976.0,2.30173]
[1742501843118,4.22031,1976.3,1976.2,1.01252]
[1742501843418,5.61351,1976.3,1976.2,4.27052]